lending/lending_fUSD_20260211
["ID","MTS","AMOUNT","RATE_DAILY","PERIOD"]
[405104964,1770826232080,-500.0,0.00015199,2]
[405104965,1770826232090,-500.0,0.00015199,2]
[405104966,1770826232100,-500.0,0.00015199,2]
[405104967,1770826232110,-500.0,0.00015199,2]
[405104968,1770826232119,-500.0,0.00015199,2]
[405104969,1770826232128,-500.0,0.00015199,2]
[405104970,1770826232139,-500.0,0.00015199,2]
[405104971,1770826232148,-500.0,0.00015199,2]
[405104972,1770826232157,-500.0,0.00015199,2]
[405104973,1770826232166,-500.0,0.00015199,2]
[405104974,1770826232175,-500.0,0.00015199,2]
[405104975,1770826232184,-500.0,0.00015199,2]
[405104976,1770826232193,-500.0,0.00015199,2]
[405104977,1770826232203,-500.0,0.00015199,2]
[405104978,1770826232213,-500.0,0.00015199,2]
[405104979,1770826232226,-172.49795382,0.00015199,2]
[405104980,1770826232236,-500.0,0.00015199,2]
[405104981,1770826232245,-500.0,0.00015199,2]
[405104982,1770826232256,-230.96229197,0.00015199,2]
[405104983,1770826232265,-500.0,0.00015199,2]
[405104984,1770826232275,-171.19715586,0.00015199,2]
[405104985,1770826232284,-500.0,0.00015199,2]
[405104986,1770826232294,-161.67360437,0.00015199,2]
[405104987,1770826232305,-313.94546318,0.00015199,2]
[405104988,1770826232315,-426.15003289,0.00015199,2]
[405104989,1770826232324,-171.23935473,0.00015199,2]
[405104990,1770826232334,-557.11233745,0.00015199,2]
[405104991,1770826232343,-183276.3435452,0.000152,2]
[405104992,1770826232360,-656.09435565,0.000152,2]
[405104993,1770826232373,-893.05564984,0.000152,2]
[405104994,1770826232385,-1037.25,0.000152,2]
[405104995,1770826232400,-1085.84254698,0.000152,2]
[405104996,1770826232416,-19496.56012286,0.000152,2]
[405104997,1770826232429,-364.719,0.000152,2]
[405104999,1770826237612,-1372.21537814,0.000152,2]
[405105001,1770826237661,-1159.41324796,0.000152,2]
[405105002,1770826237807,-88580.4388779,0.000152,2]
[405105026,1770826239611,-2357.27069278,0.000152,2]
[405105027,1770826239675,-68765.0,0.000152,2]
[405105028,1770826239686,-1084642.57986445,0.000152,2]
[405105029,1770826239697,-2098.47354966,0.000152,2]
[405105030,1770826239956,-7294.02521592,0.000152,2]
[405105031,1770826239968,-998.28188,0.000152,2]
[405105032,1770826239992,-369.0,0.000152,2]
[405105060,1770826243576,-1375.92,0.000152,2]
[405105061,1770826243587,-42718.84485081,0.000152,2]
[405105062,1770826243637,-1374.32545218,0.000152,2]
[405105063,1770826243691,-4474.666,0.000152,2]
[405105064,1770826243717,-386.82894053,0.000152,2]
[405105065,1770826245546,-1669.525,0.000152,2]
[405105066,1770826245603,-482.40841344,0.000152,2]
[405105067,1770826245614,-5420.0000004,0.000152,2]
[405105068,1770826245659,-1326.52,0.000152,2]
[405105069,1770826245670,-1382.0,0.000152,2]
[405105070,1770826245713,-348.8788024,0.000152,2]
[405105081,1770826322760,20000.0,0.00035616,120]
[405105083,1770826508933,-250.0,0.00029106,60]
[405105085,1770826682086,20000.0,0.00035616,120]
[405105086,1770826702371,150.0,0.00035616,120]
[405105106,1770827041806,20000.0,0.00035616,120]
[405105107,1770827123381,500.0,0.00035616,120]
[405105115,1770827281124,754.05,0.00035616,120]
[405105116,1770827281698,754.05,0.00035616,120]
[405105117,1770827282030,754.05,0.00035616,120]
[405105118,1770827282240,754.05,0.00035616,120]
[405105119,1770827282477,754.05,0.00035616,120]
[405105120,1770827282725,754.05,0.00035616,120]
[405105121,1770827282982,754.05,0.00035616,120]
[405105122,1770827283218,754.05,0.00035616,120]
[405105123,1770827283480,754.05,0.00035616,120]
[405105124,1770827283707,754.05,0.00035616,120]
[405105125,1770827284218,754.05,0.00035616,120]
[405105126,1770827284647,754.05,0.00035616,120]
[405105127,1770827284739,754.05,0.00035616,120]
[405105128,1770827284907,754.05,0.00035616,120]
[405105129,1770827285002,754.05,0.00035616,120]
[405105130,1770827285190,754.05,0.00035616,120]
[405105131,1770827285427,754.05,0.00035616,120]
[405105132,1770827285678,754.05,0.00035616,120]
[405105133,1770827285912,754.05,0.00035616,120]
[405105134,1770827286149,754.05,0.00035616,120]
[405105135,1770827286415,754.05,0.00035616,120]
[405105136,1770827286717,754.05,0.00035616,120]
[405105137,1770827287011,754.05,0.00035616,120]
[405105138,1770827287302,754.23315052,0.00035616,120]
[405105139,1770827342534,20000.0,0.00035616,120]
[405105174,1770827431729,-259.0,0.00013257,2]
[405105175,1770827431739,-538.59445327,0.00013269,2]
[405105176,1770827431751,-1182.23847243,0.00013269,2]
[405105177,1770827431764,-452.2270743,0.00013269,2]
[405105178,1770827431774,-166.66,0.00013334,2]
[405105179,1770827431785,-166.66,0.00013614,2]
[405105180,1770827431795,-166.66,0.00013895,2]
[405105181,1770827431804,-150.0,0.00013922,2]
[405105182,1770827431814,-166.66,0.00014143,2]
[405105183,1770827431823,-166.66,0.00014176,2]
[405105184,1770827431834,-166.66,0.00014456,2]
[405105185,1770827431843,-1200.0,0.00014499,2]
[405105186,1770827431853,-300.0,0.00014499,2]
[405105187,1770827431865,-25107.0,0.000145,2]
[405105188,1770827431875,-1300.0,0.000145,5]
[405105189,1770827431884,-280.52362488,0.00014582,2]
[405105190,1770827431894,-611.54819446,0.00014582,2]
[405105191,1770827431904,-300.0,0.00014582,2]
[405105192,1770827431913,-1000.0,0.00014589,2]
[405105193,1770827431923,-211.58217695,0.000146,2]
[405105194,1770827431933,-794.48649763,0.000146,2]
[405105196,1770827431943,-489.55298598,0.000146,2]
[405105198,1770827431952,-1264.21111633,0.000146,2]
[405105200,1770827431962,-3072.64901747,0.000146,2]
[405105202,1770827431971,-516.83654364,0.000146,2]
[405105203,1770827431980,-2700.0,0.000146,5]
[405105205,1770827431990,-166.66,0.0001461,2]
[405105207,1770827431999,-251.82659475,0.00014673,2]
[405105209,1770827432008,-249.17395871,0.0001469,2]
[405105211,1770827432019,-150.0,0.00014699,2]
[405105214,1770827432028,-194.67099102,0.00014699,2]
[405105216,1770827432038,-375.60457926,0.00014699,2]
[405105218,1770827432047,-500.0,0.00014699,2]
[405105219,1770827432057,-500.0,0.00014699,2]
[405105221,1770827432066,-500.0,0.00014699,2]
[405105222,1770827432076,-500.0,0.00014699,2]
[405105223,1770827432085,-193.14601807,0.00014699,2]
[405105224,1770827432096,-500.0,0.00014699,2]
[405105225,1770827432105,-500.0,0.00014699,2]
[405105226,1770827432115,-500.0,0.00014699,2]
[405105227,1770827432125,-500.0,0.00014699,2]
[405105228,1770827432134,-500.0,0.00014699,2]
[405105229,1770827432144,-500.0,0.00014699,2]
[405105230,1770827432153,-500.0,0.00014699,2]
[405105231,1770827432162,-232.76527619,0.00014699,2]
[405105232,1770827432172,-500.0,0.00014699,2]
[405105233,1770827432182,-84607.36758141,0.000147,2]
[405105234,1770827432195,-977.37552332,0.000147,2]
[405105235,1770827432218,-500.0,0.00014699,2]
[405105236,1770827432229,-178.45,0.000147,2]
[405105237,1770827432240,-1091.33504491,0.000147,2]
[405105238,1770827432261,-377.31590528,0.000147,2]
[405105239,1770827432283,-1148.76047939,0.000147,2]
[405105240,1770827432301,-4749.98110813,0.000147,2]
[405105241,1770827432314,-19323.81146339,0.000147,2]
[405105242,1770827432335,-2932.00000001,0.000147,2]
[405105243,1770827432349,-687.81680543,0.000147,2]
[405105244,1770827432361,-1683779.07150089,0.000147,2]
[405105245,1770827432374,-228073.40856936,0.000147,2]
[405105246,1770827432386,-182031.66549444,0.000147,2]
[405105247,1770827432398,-164020.31543067,0.000147,2]
[405105248,1770827432409,-1254.41808677,0.000147,2]
[405105249,1770827432422,-2170.0,0.000147,2]
[405105250,1770827432434,-1085.39999998,0.000147,2]
[405105262,1770827437812,-151.0,0.00014697,2]
[405105263,1770827437822,-500.0,0.00014699,2]
[405105264,1770827437832,-500.0,0.00014699,2]
[405105265,1770827437842,-500.0,0.00014699,2]
[405105266,1770827437852,-211.16078222,0.00014699,2]
[405105267,1770827437862,-500.0,0.00014699,2]
[405105268,1770827437872,-479.62907079,0.00014699,2]
[405105269,1770827437881,-6823.81349884,0.000147,2]
[405105270,1770827437892,-2080.0,0.000147,2]
[405105271,1770827437904,-19265.89671864,0.000147,2]
[405105272,1770827437915,-3999.99999999,0.000147,2]
[405105273,1770827437926,-1606.43883667,0.000147,2]
[405105274,1770827437937,-519.57820263,0.000147,2]
[405105275,1770827437948,-334.615,0.000147,2]
[405105276,1770827437960,-1108.49636918,0.000147,2]
[405105277,1770827437971,-335.5,0.000147,2]
[405105278,1770827437982,-20310.0,0.000147,2]
[405105289,1770827439877,-18417.02443466,0.000147,2]
[405105290,1770827439897,-542.688,0.000147,2]
[405105291,1770827439908,-883.15138334,0.000147,2]
[405105292,1770827439919,-248638.54125991,0.000147,2]
[405105293,1770827440028,-126960.61176242,0.000147,2]
[405105294,1770827440040,-380.30947352,0.000147,2]
[405105295,1770827440051,-13761.14410848,0.000147,2]
[405105296,1770827440063,-1965.0,0.000147,2]
[405105297,1770827440074,-276.74782503,0.000147,2]
[405105298,1770827440144,-1960.0,0.000147,2]
[405105299,1770827440156,-3565.18647994,0.000147,2]
[405105312,1770827444730,-6339.06703949,0.000147,2]
[405105313,1770827444752,-18426.85118,0.000147,2]
[405105314,1770827444778,-1860.39881757,0.000147,2]
[405105315,1770827444789,-68578.93823183,0.000147,2]
[405105316,1770827444800,-290.0,0.000147,2]
[405105317,1770827444810,-1016.49353724,0.000147,2]
[405105318,1770827444821,-1844.40697459,0.000147,2]
[405105319,1770827444832,-261.999998,0.000147,2]
[405105320,1770827444842,-1740.93807259,0.000147,2]
[405105321,1770827444853,-32589.10714352,0.000147,2]
[405105323,1770827445745,-5632.25459061,0.000147,2]
[405105324,1770827445756,-421.26875652,0.000147,2]
[405105325,1770827445767,-5836.95808773,0.000147,2]
[405105326,1770827445781,-883.4800005,0.000147,2]
[405105327,1770827445792,-1045.60458746,0.000147,2]
[405105328,1770827445813,-395.78949624,0.000147,2]
[405105329,1770827445824,-19610.0,0.000147,2]
[405105330,1770827445834,-4074.12,0.000147,2]
[405105331,1770827445984,-6753.6,0.000147,2]
[405105332,1770827446016,-3311.80000005,0.000147,2]
[405105333,1770827446029,-2565.3,0.000147,2]
[405105334,1770827446040,-4230.60179393,0.000147,2]
[405105537,1770827536455,-150.0,0.00014193,7]
[405105538,1770827536488,-50.0,0.00014193,7]
[405105539,1770827537392,-144.42338,0.00014193,7]
[405105540,1770827537424,-55.57662,0.00014193,7]
[405105541,1770827539577,-183.270141,0.00014193,7]
[405105543,1770827539602,-16.729859,0.00014193,7]
[405105545,1770827571551,150.0,0.00035616,120]
[405105551,1770827595613,-200.0,0.00014193,7]
[405105552,1770827642856,20000.0,0.00035616,120]
[405105553,1770827651242,-66.540282,0.00014193,7]
[405105554,1770827651266,-133.459718,0.00014193,7]
[405105555,1770827653345,-194.233804,0.00014193,7]
[405105556,1770827653366,-5.766196,0.00014193,7]
[405105557,1770827655320,-200.0,0.00014193,7]
[405105558,1770827657968,-166.350707,0.00014193,7]
[405105559,1770827657992,-33.649293,0.00014193,7]
[405105560,1770827663929,-300.0,0.00014193,7]
[405105561,1770827739101,-160.86444378,0.00014061,2]
[405105562,1770827850066,737.82,0.00035616,120]
[405105563,1770827890724,-82.89099,0.00014193,7]
[405105564,1770827890751,-460.963664,0.00014193,7]
[405105565,1770827890773,-505.387045,0.00014193,7]
[405105566,1770827890795,-549.810425,0.00014193,7]
[405105567,1770827920156,302.0,0.00035616,120]
[405105568,1770827963882,151.0,0.00035616,120]
[405105569,1770828002614,20000.0,0.00035616,120]
[405105570,1770828303725,20000.0,0.00035616,120]
[405105579,1770828499208,150.0,0.00035616,120]
[405105580,1770828507571,260.03815026,0.00035616,120]
[405105636,1770828631830,-2518.52160099,0.000136,4]
[405105637,1770828631842,-981.47839901,0.000136,4]
[405105638,1770828631852,-300.0,0.00013699,2]
[405105639,1770828631862,-1200.0,0.00013699,2]
[405105640,1770828631876,-787.13415081,0.000137,5]
[405105641,1770828631893,-610.53759736,0.000137,5]
[405105642,1770828631906,-303.8818997,0.000137,5]
[405105643,1770828631935,-5298.44635213,0.000137,5]
[405105644,1770828631944,-1993.6444129,0.000138,5]
[405105645,1770828631990,-422.81516774,0.000138,5]
[405105646,1770828632001,-385.00293256,0.000138,5]
[405105660,1770828637854,-3424.37572502,0.000138,5]
[405105661,1770828637909,-307.92957538,0.000138,5]
[405105662,1770828637920,-638.894002,0.000138,5]
[405105663,1770828638018,-3327.3381844,0.000138,5]
[405105664,1770828638027,-4881.52,0.00013863,2]
[405105665,1770828638037,-200.0,0.00013882,2]
[405105666,1770828638049,-12509.93774146,0.000139,5]
[405105667,1770828638073,-754.07848955,0.000139,5]
[405105668,1770828638085,-735.98376899,0.000139,5]
[405105669,1770828638095,-339.13555622,0.00014061,2]
[405105670,1770828638105,-150.0,0.00014099,2]
[405105671,1770828638115,-189.05432292,0.000141,2]
[405105672,1770828638124,-774.80967839,0.000141,2]
[405105772,1770828639965,-2316.21,0.000141,2]
[405105773,1770828640231,-7526.07589687,0.000141,2]
[405105774,1770828640241,-1852.42,0.00014172,2]
[405105775,1770828640250,-150.0,0.00014173,2]
[405105776,1770828640259,-10023.23011623,0.0001419,2]
[405105777,1770828640269,-166.11597248,0.0001419,2]
[405105778,1770828640278,-500.0,0.00014199,2]
[405105779,1770828640288,-500.0,0.00014199,2]
[405105780,1770828640299,-21543.52010952,0.00014199,2]
[405105781,1770828640308,-326.36865732,0.00014199,2]
[405105782,1770828640317,-1333.91604065,0.00014199,2]
[405105783,1770828640327,-2048.43267832,0.00014199,2]
[405105784,1770828640336,-262.92320549,0.00014199,2]
[405105785,1770828640346,-500.0,0.00014199,2]
[405105786,1770828640355,-162.93569333,0.00014199,2]
[405105787,1770828640364,-535.74034956,0.00014199,2]
[405105788,1770828640373,-358.32105063,0.00014199,2]
[405105789,1770828640383,-632.57177979,0.00014199,2]
[405105790,1770828640392,-3375.5171,0.000142,2]
[405105791,1770828640401,-107671.28834219,0.000142,2]
[405105792,1770828640413,-468.54177519,0.000142,2]
[405105793,1770828640609,-2999427.28458262,0.000142,2]
[405105794,1770828640618,-681.22482766,0.00014299,2]
[405105795,1770828640628,-1000.0,0.00014299,2]
[405105796,1770828640638,-1010.6773794,0.00014299,2]
[405105797,1770828640647,-150.0,0.00014399,2]
[405105798,1770828640660,-500.0,0.00014399,2]
[405105799,1770828640669,-2112.26471769,0.00014413,2]
[405105800,1770828640679,-3392.00257706,0.00014413,2]
[405105801,1770828640688,-5296.6886842,0.00014413,2]
[405105802,1770828640698,-25101.1711543,0.00014413,2]
[405105803,1770828640708,-8668.28104634,0.00014413,2]
[405105804,1770828640718,-6350.67356311,0.00014413,2]
[405105805,1770828640727,-2880.10743331,0.00014413,2]
[405105806,1770828640737,-4242.70380528,0.00014413,2]
[405105807,1770828640746,-4769.69624474,0.00014413,2]
[405105808,1770828640756,-2368.21228956,0.00014413,2]
[405105809,1770828640765,-3715.71136583,0.00014413,2]
[405105810,1770828640774,-5823.68112366,0.00014413,2]
[405105811,1770828640785,-2624.15986144,0.00014413,2]
[405105812,1770828640795,-29209.39368129,0.00014413,2]
[405105813,1770828640805,-12776.50357333,0.00014413,2]
[405105814,1770828640815,-16884.72610032,0.00014413,2]
[405105815,1770828640825,-3136.05500518,0.00014413,2]
[405105816,1770828640836,-20992.94862731,0.00014413,2]
[405105817,1770828640847,-500.0,0.00014424,2]
[405105818,1770828640860,-150.0,0.00014424,2]
[405105819,1770828640870,-150.0,0.00014425,2]
[405105820,1770828640880,-150.65210114,0.00014425,2]
[405105821,1770828640891,-182.43388531,0.00014425,2]
[405105822,1770828640901,-10617.09557524,0.00014439,2]
[405105823,1770828640910,-150.0,0.00014454,2]
[405105824,1770828640920,-500.0,0.00014454,2]
[405105825,1770828640930,-500.0,0.00014479,2]
[405105826,1770828640939,-212.37658603,0.00014479,2]
[405105827,1770828640948,-200.0,0.0001448,2]
[405105828,1770828640958,-150.0,0.00014509,2]
[405105829,1770828640968,-500.0,0.00014509,2]
[405105830,1770828641231,-500.0,0.00014534,2]
[405105831,1770828641247,-215.63831267,0.00014563,2]
[405105832,1770828641257,-278.85968916,0.00014563,2]
[405105833,1770828641266,-171.99283888,0.00014588,2]
[405105834,1770828641276,-1000.0,0.00014598,2]
[405105835,1770828641285,-6805.6412,0.00014598,2]
[405105836,1770828641296,-2500.0,0.00014598,2]
[405105837,1770828641306,-21543.52010947,0.00014609,2]
[405105838,1770828641315,-166.11597248,0.00014687,2]
[405105839,1770828641325,-200.0,0.00014689,2]
[405105840,1770828641335,-561.50404512,0.00014689,2]
[405105841,1770828641345,-500.0,0.00014689,2]
[405105842,1770828641356,-200.0,0.00014689,2]
[405105843,1770828641366,-4943.7970492,0.00014697,2]
[405105844,1770828641376,-487.87229897,0.00014697,2]
[405105845,1770828641388,-675125.142905,0.00014697,2]
[405105846,1770828641399,-901.2675448,0.00014698,2]
[405105847,1770828641409,-126908.5430119,0.00014698,2]
[405105848,1770828641419,-112085.9962491,0.00014698,2]
[405105849,1770828641429,-159.26734412,0.00014699,2]
[405105850,1770828641438,-500.0,0.00014699,2]
[405105851,1770828641449,-500.0,0.00014699,2]
[405105852,1770828641459,-500.0,0.00014699,2]
[405105853,1770828641469,-500.0,0.00014699,2]
[405105854,1770828641479,-500.0,0.00014699,2]
[405105855,1770828641489,-500.0,0.00014699,2]
[405105856,1770828641499,-563.63927172,0.00014699,2]
[405105857,1770828641509,-500.0,0.00014699,2]
[405105858,1770828641521,-500.0,0.00014699,2]
[405105859,1770828641532,-500.0,0.00014699,2]
[405105860,1770828641544,-500.0,0.00014699,2]
[405105861,1770828641556,-323.15,0.00014699,2]
[405105862,1770828641566,-500.0,0.00014699,2]
[405105863,1770828641576,-500.0,0.00014699,2]
[405105864,1770828641586,-500.0,0.00014699,2]
[405105865,1770828641596,-500.0,0.00014699,2]
[405105866,1770828641607,-500.0,0.00014699,2]
[405105867,1770828641617,-500.0,0.00014699,2]
[405105868,1770828641628,-500.0,0.00014699,2]
[405105869,1770828641639,-500.0,0.00014699,2]
[405105870,1770828641649,-500.0,0.00014699,2]
[405105871,1770828641658,-500.0,0.00014699,2]
[405105872,1770828641668,-500.0,0.00014699,2]
[405105873,1770828641678,-500.0,0.00014699,2]
[405105874,1770828641688,-500.0,0.00014699,2]
[405105875,1770828641698,-277.56073646,0.00014699,2]
[405105876,1770828641709,-2500.2114363,0.000147,2]
[405105877,1770828641720,-151.0,0.000147,2]
[405105878,1770828641730,-151.91325944,0.000147,2]
[405105879,1770828641740,-166.66,0.00014737,2]
[405105880,1770828641750,-10617.09557524,0.00014777,2]
[405105881,1770828641760,-214.23234143,0.00014779,2]
[405105882,1770828641770,-150.0,0.000148,2]
[405105883,1770828641780,-178.02635016,0.00014824,2]
[405105884,1770828641790,-150.0,0.00014824,2]
[405105885,1770828641809,-155.19872305,0.00014824,2]
[405105886,1770828641821,-174.09038561,0.00014824,2]
[405105887,1770828641836,-171.17002713,0.00014824,2]
[405105888,1770828641848,-150.0,0.00014879,2]
[405105889,1770828641859,-17500.0,0.000149,5]
[405105890,1770828641871,-228.6385511,0.00014934,2]
[405105891,1770828641882,-1333.91604064,0.00014939,2]
[405105892,1770828641893,-271.24,0.0001494,2]
[405105893,1770828641906,-323.15,0.00014973,2]
[405105894,1770828641917,-250.0,0.00015,2]
[405105895,1770828641928,-151.72615529,0.00015,2]
[405105896,1770828641939,-21543.52010947,0.00015019,2]
[405105897,1770828641951,-1680.0,0.00015069,2]
[405105898,1770828641962,-166.66,0.00015077,2]
[405105899,1770828641972,-10617.09557524,0.00015116,2]
[405105900,1770828641982,-500.0,0.00015173,2]
[405105901,1770828641992,-500.0,0.00015173,2]
[405105902,1770828642001,-330.03218485,0.00015199,2]
[405105903,1770828642011,-1037.2500002,0.00015202,2]
[405105904,1770828642024,-255.0,0.00015227,2]
[405105905,1770828642035,-323.15,0.00015247,2]
[405105906,1770828642047,-776.5478061,0.00015249,2]
[405105907,1770828642057,-253.13447912,0.00015263,2]
[405105908,1770828642067,-21543.52010947,0.00015429,2]
[405105909,1770828642078,-10617.09557524,0.00015454,2]
[405105910,1770828642088,-323.15,0.00015521,2]
[405105911,1770828642098,-166.66,0.00015544,2]
[405105912,1770828642109,-1333.91604064,0.00015679,2]
[405105913,1770828642119,-253.13447908,0.00015703,2]
[405105914,1770828642130,-10617.09557524,0.00015793,2]
[405105915,1770828642142,-323.19,0.00015795,2]
[405105916,1770828642153,-21543.52010947,0.00015839,2]
[405105917,1770828642164,-250.0,0.00016007,2]
[405105918,1770828642174,-166.66,0.0001601,2]
[405105919,1770828642185,-326.36865731,0.0001605,2]
[405105920,1770828642196,-2048.4326783,0.0001605,2]
[405105921,1770828642207,-10617.09557524,0.00016131,2]
[405105922,1770828642218,-253.13447908,0.00016142,2]
[405105923,1770828642228,-21543.52010947,0.0001625,2]
[405105924,1770828642240,-112085.9962491,0.0001634,2]
[405105925,1770828642252,-2875.0,0.000164,2]
[405105926,1770828642263,-1000.0,0.00016412,2]
[405105927,1770828642274,-1333.91604064,0.0001642,2]
[405105928,1770828642284,-433.0,0.00016439,2]
[405105929,1770828642297,-10617.09557524,0.0001647,2]
[405105930,1770828642308,-166.66,0.00016477,2]
[405105931,1770828642320,-8517.0,0.00016536,2]
[405105932,1770828642331,-720.0,0.00016576,2]
[405105933,1770828642343,-253.13447908,0.00016582,2]
[405105934,1770828642353,-21543.52010947,0.0001666,2]
[405105935,1770828642365,-10617.09557524,0.00016808,2]
[405105936,1770828642377,-1255.57258071,0.00016844,2]
[405105937,1770828642387,-1103.1102273,0.00016865,2]
[405105938,1770828642401,-161.14,0.00016949,2]
[405105939,1770828642411,-300.0,0.00017,2]
[405105940,1770828642422,-253.13447908,0.00017021,2]
[405105941,1770828642433,-841.0,0.0001704,2]
[405105942,1770828642444,-2829.0,0.0001704,2]
[405105943,1770828642455,-500.0,0.00017059,2]
[405105944,1770828642466,-13335.28111906,0.0001707,2]
[405105967,1770828644058,-5315.1,0.0001707,2]
[405105968,1770828644114,-2893.13899041,0.0001707,2]
[405105969,1770828644125,-10617.09557524,0.00017147,2]
[405105970,1770828644135,-1333.91604064,0.0001716,2]
[405105971,1770828644145,-10249.35,0.00017247,2]
[405105972,1770828644155,-1000.0,0.0001726,2]
[405105973,1770828644166,-246.1371616,0.00017349,2]
[405105974,1770828644175,-3500.0,0.000174,6]
[405105975,1770828644185,-150.95915695,0.00017452,2]
[405105976,1770828644195,-253.13447908,0.00017461,2]
[405105977,1770828644204,-14182.10703956,0.0001748,2]
[405105978,1770828644215,-2438.85581681,0.0001748,2]
[405105979,1770828644235,-627.14142312,0.0001748,2]
[405105980,1770828645178,-200.0,0.00014513,2]
[405105981,1770828645190,-1003.55824115,0.0001748,2]
[405105982,1770828645302,-3291.85758883,0.0001748,2]
[405105983,1770828645313,-3500.0,0.000175,6]
[405105984,1770828645323,-1000.0,0.00017534,2]
[405105985,1770828645338,-155.34959577,0.00017574,2]
[405105986,1770828645349,-3500.0,0.000176,6]
[405105987,1770828645359,-160.0,0.00017609,2]
[405105988,1770828645369,-3500.0,0.000177,6]
[405105989,1770828645380,-617.0,0.00017761,2]
[405105990,1770828645391,-3487.0,0.00017761,2]
[405105991,1770828645402,-1288.0,0.00017761,2]
[405105992,1770828645413,-1207.0,0.00017761,2]
[405105993,1770828645426,-1273.0,0.00017761,2]
[405105994,1770828645437,-5966.0,0.00017761,2]
[405105995,1770828645447,-412.0,0.00017761,2]
[405105996,1770828645458,-2449.0,0.00017761,2]
[405105997,1770828645468,-736.0,0.00017765,2]
[405105998,1770828645478,-3683.0,0.000178,6]
[405105999,1770828645489,-150.0,0.00017808,2]
[405106000,1770828645501,-500.0,0.00017808,2]
[405106001,1770828645512,-500.0,0.00017808,2]
[405106002,1770828645523,-500.0,0.00017808,2]
[405106003,1770828645533,-500.0,0.00017808,2]
[405106004,1770828645545,-500.0,0.00017808,2]
[405106005,1770828645557,-500.0,0.00017808,2]
[405106006,1770828645568,-500.0,0.00017808,2]
[405106007,1770828645579,-500.0,0.00017808,2]
[405106008,1770828645591,-500.0,0.00017808,2]
[405106009,1770828645602,-500.0,0.00017808,2]
[405106010,1770828645612,-500.0,0.00017808,2]
[405106011,1770828645623,-500.0,0.00017808,2]
[405106012,1770828645634,-500.0,0.00017808,2]
[405106013,1770828645644,-500.0,0.00017808,2]
[405106014,1770828645655,-500.0,0.00017808,2]
[405106015,1770828645665,-500.0,0.00017808,2]
[405106016,1770828645676,-500.0,0.00017808,2]
[405106017,1770828645688,-500.0,0.00017808,2]
[405106018,1770828645701,-500.0,0.00017808,2]
[405106019,1770828645712,-237.9780224,0.00017808,2]
[405106020,1770828645724,-1000.0,0.00017808,2]
[405106021,1770828645734,-151.0,0.00017859,2]
[405106022,1770828645746,-397.949574,0.00017859,2]
[405106023,1770828645758,-397.949574,0.00017859,2]
[405106024,1770828645769,-397.949574,0.00017859,2]
[405106025,1770828645779,-397.949574,0.00017859,2]
[405106026,1770828645789,-150640.7812566,0.00017859,2]
[405106027,1770828645800,-28317.1235264,0.00017861,2]
[405106028,1770828645810,-150.0,0.00017863,2]
[405106029,1770828645820,-50000.0,0.0001787,2]
[405106030,1770828645833,-21543.52010947,0.0001789,2]
[405106031,1770828645843,-1252.91110801,0.000179,3]
[405106032,1770828645853,-25000.0,0.000179,3]
[405106033,1770828645864,-2553.59190785,0.000179,5]
[405106034,1770828645874,-25000.0,0.000179,3]
[405106035,1770828645884,-253.13447908,0.000179,2]
[405106036,1770828645894,-25000.0,0.000179,3]
[405106037,1770828645906,-189.05432291,0.000179,2]
[405106038,1770828645916,-10000.0,0.000179,2]
[405106039,1770828645928,-25000.0,0.000179,3]
[405106040,1770828645940,-326.36865731,0.000179,2]